Cogmind - Beta 14 @@@ ROGUE MODE // 2024.11.06 @ 20:14:22 Player: Tereza Result: Destroyed by B-75 Beast with Heavy Plasma Cannon Performance ------------- Evolutions (4) 2000 Regions Visited (16) 3200 Robots Destroyed (84) 420 Value Destroyed (4108) 4108 Prototype IDs (34) 680 Alien Tech Used (0) 0 Bonus (1595) 1595 TOTAL SCORE: 12003 Bonus ------- High Alert Combat Kills 295 Entered Garrisons 200 Used RIF Installer 500 Aligned with FarCom 300 Met Data Miner 300 Cogmind --------- Core Integrity 0/850 Matter 157/300 Energy 100/100 System Corruption 13% Temperature Cool (37) Movement Treading (160) Location -5/Proximity Caves Parts ------- > --- POWER (1) -------- (None) > --- PROPULSION (3) --- Medium Treads Spiked Medium Treads Spiked Medium Treads > --- UTILITY (8) ------ Advanced Heat Sink Medium Storage Unit Advanced Sensor Array Advanced Signal Interpreter Targeting Computer Makeshift Hacking Suite Makeshift Hacking Suite > --- WEAPON (3) ------- Variable Charge Gun Magnetic Acceleration Cannon Makeshift Sword > --- INVENTORY (10) --- Medium Treads Spiked Medium Treads Xenon Bombardment Thruster Advanced Heat Sink Improved Terrain Scanner Matter Filter Heavy Plasma Cannon Heavy Missile Launcher Heavy Missile Launcher Great Axe Peak State ------------ > --- POWER ------------ Neutrino Core > --- PROPULSION ------- Medium Treads Spiked Medium Treads Spiked Medium Treads > --- UTILITY ---------- Advanced Heat Sink Medium Storage Unit Advanced Sensor Array Advanced Signal Interpreter Targeting Computer Makeshift Hacking Suite Makeshift Hacking Suite Improved Hacking Suite > --- WEAPON ----------- Variable Charge Gun Heavy Plasma Cannon Great Axe > --- INVENTORY -------- Medium Treads Spiked Medium Treads Xenon Bombardment Thruster Advanced Heat Sink Improved Terrain Scanner Matter Filter Improved Field Recycling Unit Proton Missile Launcher Heavy Missile Launcher Makeshift Sword [Rating: 69] Favorites ----------- Power Ion Engine Engine Ion Engine Power Core Light Fission Core Propulsion Light Treads Treads Light Treads Leg Carbon-fiber Leg Wheel Wheel Flight Unit Xenon Bombardment Thruster Utility Targeting Computer Device Improved Heat Sink Storage Huge Storage Unit Processor Targeting Computer Hackware Makeshift Hacking Suite Protection Light Armor Plating Weapon Gauss Rifle Energy Gun Thermic Laser Energy Cannon Beam Cannon Ballistic Gun Gauss Rifle Ballistic Cannon Magnetic Acceleration Cannon Launcher Grenade Launcher Slashing Weapon Great Axe Special Melee Weapon Datajack Build | -11 -10 -10 -10 -9 -8 -8 -7 -7 -7 -7 -6 -6 -6 -6 -6 -5 ------- Run | Yrd Mat Min Exi Min Mat Gar Fac Low Low Zio Pro Fac Low Low Dat Pro Slots Evolved 8 | . . . . . 4 . 2 . . . . 2 . . . . Power . | . . . . . . . . . . . . . . . . . Propulsion 1 | . . . . . 1 . . . . . . . . . . . Utility 6 | . . . . . 3 . 1 . . . . 2 . . . . Weapon 1 | . . . . . . . 1 . . . . . . . . . Parts Attached 120 | 5 11 3 . . 13 18 25 2 2 1 . 27 6 2 2 3 Power 12 | 1 1 . . . 1 3 3 . . . . 1 1 1 . . Engine 6 | 1 1 . . . . 2 2 . . . . . . . . . Core 6 | . . . . . 1 1 1 . . . . 1 1 1 . . Reactor . | . . . . . . . . . . . . . . . . . Propulsion 36 | 1 3 1 . . 3 8 8 . . 1 . 9 2 . . . Treads 19 | 1 2 1 . . 2 5 . . . . . 6 2 . . . Leg 5 | . . . . . . 2 1 . . . . 2 . . . . Wheel 6 | . 1 . . . 1 1 2 . . . . 1 . . . . Hover . | . . . . . . . . . . . . . . . . . Flight 6 | . . . . . . . 5 . . 1 . . . . . . Utility 38 | 1 4 1 . . 5 4 6 1 2 . . 11 3 . . . Device 14 | . . . . . 3 2 4 . . . . 3 2 . . . Storage 4 | 1 1 . . . . . . . . . . 2 . . . . Processor 6 | . . . . . 1 2 . . 1 . . 1 1 . . . Hackware 5 | . . . . . . . 1 1 1 . . 2 . . . . Protection 9 | . 3 1 . . 1 . 1 . . . . 3 . . . . Artifact . | . . . . . . . . . . . . . . . . . Weapon 34 | 2 3 1 . . 4 3 8 1 . . . 6 . 1 2 3 Energy Gun 8 | 1 . . . . . . 1 . . . . 4 . 1 1 . Energy Cannon 5 | . 1 . . . 1 . 1 . . . . 1 . . 1 . Ballistic Gun 11 | 1 2 1 . . 2 2 3 . . . . . . . . . Ballistic Cannon 2 | . . . . . . . 1 . . . . . . . . 1 Launcher 4 | . . . . . 1 1 1 . . . . . . . . 1 Special Weapon . | . . . . . . . . . . . . . . . . . Impact Weapon . | . . . . . . . . . . . . . . . . . Slashing Weapon 3 | . . . . . . . . 1 . . . 1 . . . 1 Piercing Weapon . | . . . . . . . . . . . . . . . . . Special Melee Weapon 1 | . . . . . . . 1 . . . . . . . . . Unidentified Prototypes 1 | . . . . . . . 1 . . . . . . . . . Parts Lost 59 | . 4 2 . . 8 7 20 . 1 . . 13 1 1 . 2 Power 8 | . 1 . . . 2 . 2 . . . . 1 1 . . 1 Propulsion 18 | . . 1 . . 3 4 6 . . . . 4 . . . . Utility 17 | . 1 1 . . 3 2 4 . . . . 5 . . . 1 Weapon 16 | . 2 . . . . 1 8 . 1 . . 3 . 1 . . Highest Loss Streak 12 | . 3 2 . . 5 2 9 . 1 . . 12 1 1 . 2 To Critical Strikes . | . . . . . . . . . . . . . . . . . Average Slot Usage (%) 91 | . 90 91 100 100 83 95 82 86 87 84 84 87 93 97 87 98 Engine 4 | . 13 14 14 14 6 3 5 7 7 7 7 . . . . . Core 2 | . . . . . 1 3 . . . . . 4 2 5 6 5 Treads 14 | . 13 14 14 14 14 20 . . . . . 13 8 20 20 20 Leg 2 | . . . . . . 5 5 . . . . 3 10 . . . Wheel 3 | . 10 14 14 14 8 . 7 . . . . . . . . . Flight 1 | . . . . . . . 5 23 23 23 23 2 . . . . Device 7 | . . . . . 7 7 11 23 21 15 15 6 10 13 13 13 Storage 6 | . 14 14 14 14 9 9 5 . . . . . 6 6 6 6 Processor 15 | . . . . . 9 25 20 10 8 15 15 17 13 13 13 13 Hackware 8 | . . . . . . . . 11 15 15 15 18 20 20 20 19 Protection 4 | . 13 14 14 14 9 . 3 . . . . 3 . . . . Energy Gun 3 | . 5 . . . . . 3 . . . . 8 6 5 . 6 Energy Cannon 3 | . 4 14 14 14 8 . . . . . . . 6 6 . 3 Ballistic Gun 7 | . 13 6 14 14 9 17 9 . . . . . . . . . Slashing Weapon 2 | . . . . . . . . 2 7 7 7 5 6 6 6 5 Peak Build Rating 69 | 5 8 9 9 9 26 36 42 36 36 36 36 61 66 69 69 69 Average Rating 36 | 3 6 7 9 9 19 31 35 34 35 35 35 50 56 66 59 68 On Entrance 31 | . 5 7 9 9 9 24 36 35 36 35 36 35 51 62 69 69 Naked Turns . | . . . . . . . . . . . . . . . . . Heaviest Build 106 | 14 91 92 92 92 96 98 106 16 16 14 14 34 36 45 45 48 Greatest Support 90 | 20 20 10 10 10 60 60 32 16 16 18 18 90 84 84 84 84 Greatest Overweight (x) 32 | 3 9 9 9 9 9 5 32 . . . . 2 1 1 . . Average Overweight (x) 1 | . 3 9 9 9 6 2 1 . . . . . . . . . Largest Inventory Capacity 25 | 8 25 25 25 25 25 25 25 5 5 5 5 10 10 10 10 10 Average Capacity 16 | 7 17 25 25 25 25 25 19 5 5 5 5 5 10 10 10 10 Most Carried 25 | 7 16 18 19 19 25 25 25 5 5 5 5 10 10 10 10 10 Average Carried 14 | 5 9 16 18 19 21 24 18 4 4 4 4 5 9 9 10 10 Final Capacity 25 | 8 25 25 25 25 25 25 5 5 5 5 5 10 10 10 10 10 Final Carried 25 | 7 16 18 19 19 22 25 5 4 5 5 5 10 10 10 10 10 Class Distribution -------------------- 35% | Hacker-Mutant 25% | Mutant 25% | Scavenger-Mutant 3% | Scavenger-Gunner Dominant Class ---------------- Mutant | -10/Materials Mutant | -10/Mines Mutant | -10/Exiles Mutant | -9/Mines Mutant | -8/Materials Scavenger-Mutant | -8/Garrison Scavenger-Gunner | -7/Factory Hacker-Sprinter | -7/Lower Caves Hacker-Sprinter | -7/Lower Caves Hacker-Sprinter | -7/Zion Hacker-Mutant | -6/Proximity Caves Hacker-Mutant | -6/Factory Hacker-Mutant | -6/Lower Caves Hacker-Mutant | -6/Lower Caves Hacker-Mutant | -6/Data Miner Hacker-Mutant | -5/Proximity Caves Resources | -11 -10 -10 -10 -9 -8 -8 -7 -7 -7 -7 -6 -6 -6 -6 -6 -5 ----------- Run | Yrd Mat Min Exi Min Mat Gar Fac Low Low Zio Pro Fac Low Low Dat Pro Matter Collected 2662 | 237 247 29 . . 244 868 80 39 156 . 133 324 109 112 . 84 Remotely . | . . . . . . . . . . . . . . . . . Salvage Created 3475 | . 472 132 . . 719 1025 194 . 46 . . 737 . 14 . 136 Parts 162 | . 30 7 . . 30 53 6 . 6 . . 27 . 1 . 2 Haulers Intercepted 4 | . 1 . . . 3 . . . . . . . . . . . Recyclers Shooed . | . . . . . . . . . . . . . . . . . Parts Field Recycled . | . . . . . . . . . . . . . . . . . Retrieved Matter . | . . . . . . . . . . . . . . . . . Parts Self-Destructed 8 | . . . . . . . . 1 6 . . . . . . 1 Prevented 2 | . . . . . . . . 2 . . . . . . . . Kills | -11 -10 -10 -10 -9 -8 -8 -7 -7 -7 -7 -6 -6 -6 -6 -6 -5 ------- Run | Yrd Mat Min Exi Min Mat Gar Fac Low Low Zio Pro Fac Low Low Dat Pro Combat Hostiles Destroyed 72 | . 11 2 . . 16 23 6 . 1 . . 8 . 1 . 4 Melee 9 | . . . . . . . . . 1 . . 7 . 1 . . Guns 40 | . 9 . . . 6 22 2 . . . . 1 . . . . Cannons 18 | . 2 2 . . 8 . 4 . . . . . . . . 2 AOE 3 | . . . . . 1 1 . . . . . . . . . 1 Classes Destroyed 12 | . 6 . . . 2 . 3 . . . . . . 1 . . Worker 1 | . . . . . . . 1 . . . . . . . . . Builder 1 | . 1 . . . . . . . . . . . . . . . Hauler 4 | . 1 . . . 3 . . . . . . . . . . . Recycler 4 | . 1 1 . . . . . . . . . 2 . . . . Watcher 2 | . 1 . . . 1 . . . . . . . . . . . Swarmer 18 | . 6 . . . 8 4 . . . . . . . . . . Grunt 35 | . 5 2 . . 6 14 3 . . . . 2 . . . 3 Brawler 4 | . . . . . . . 2 . . . . 1 . . . 1 Sentry 4 | . . . . . 1 3 . . . . . . . . . . Hunter 3 | . . . . . 1 2 . . . . . . . . . . Programmer 7 | . . . . . . . 1 . 1 . . 5 . . . . Thief 1 | . . . . . . . . . . . . . . 1 . . Best Kill Streak 6 | . 3 3 . . 4 6 4 . 1 . . 1 . 1 . 4 Combat Bots Only 6 | . 3 1 . . 4 6 3 . 1 . . 1 . 1 . 4 Max Kills in Single Turn 2 | . 2 1 . . 1 2 1 . 1 . . 1 . 1 . 1 Gunslinging 1 | . 1 . . . . 1 . . . . . . . . . . Exploded 1 | . . . . . 1 1 . . . . . . . . . 1 Melee 1 | . . . . . . . . . 1 . . 1 . 1 . . Uniques/NPCs Destroyed . | . . . . . . . . . . . . . . . . . Combat | -11 -10 -10 -10 -9 -8 -8 -7 -7 -7 -7 -6 -6 -6 -6 -6 -5 -------- Run | Yrd Mat Min Exi Min Mat Gar Fac Low Low Zio Pro Fac Low Low Dat Pro Hostile Shots Fired 746 | . 73 18 . . 114 136 139 . 15 . 6 146 44 4 . 51 Missed 188 | . 17 5 . . 26 40 39 . 7 . 5 28 7 1 . 13 Damage Taken 8872 | . 683 181 . . 1000 1458 1885 . 84 . 12 2108 553 78 . 830 Core 1975 | . 118 54 . . 142 229 529 . 26 . . 578 74 38 . 187 Absorbed by Shields . | . . . . . . . . . . . . . . . . . Core Remaining (%) 45 | 100 . . . 31 . 32 . . . . 20 . . . . . Volleys Fired 267 | . 57 10 . . 54 86 23 . . . . 19 1 2 . 15 Largest 3 | . 2 2 . . 2 2 3 . . . . 2 2 2 . 3 Hottest 204 | . 80 80 . . 88 58 182 . . . . 135 165 165 . 204 Shots Fired 510 | . 101 19 . . 108 172 61 . . . . 24 3 3 . 19 Gun 386 | . 83 9 . . 56 168 41 . . . . 24 1 1 . 3 Cannon 112 | . 18 10 . . 50 . 18 . . . . . 2 2 . 12 Launcher 12 | . . . . . 2 4 2 . . . . . . . . 4 Special . | . . . . . . . . . . . . . . . . . Kinetic 343 | . 66 9 . . 56 168 34 . . . . . . . . 10 Thermal 147 | . 35 10 . . 50 . 22 . . . . 19 3 3 . 5 Explosive 12 | . . . . . 2 4 2 . . . . . . . . 4 Electromagnetic 8 | . . . . . . . 3 . . . . 5 . . . . Robot Hit Streak 29 | . 13 4 . . 7 29 14 . . . . 16 . 2 . 9 Robot Miss Streak 5 | . 4 3 . . 5 4 3 . . . . 1 2 3 . 2 Penetration Max 1 | . . . . . . 1 1 . . . . . . . . . Secondary Targets 7 | . 2 . . . . 5 . . . . . . . . . . Max Gunslinging Chain 1 | . 1 . . . . 1 . . . . . . . . . . Shots Hit Robots 336 | . 60 11 . . 64 86 45 . 3 . . 51 . 3 . 13 Core Hits 181 | . 24 4 . . 31 52 42 . 1 . . 17 . . . 10 Critical Kills 4 | . . . . . 2 . 1 . . . . . . . . 1 Critical Parts Destroyed 3 | . . . . . . 3 . . . . . . . . . . Critical Strikes 20 | . . . . . 2 3 2 . . . . 12 . . . 1 Burn 5 | . . . . . . . 1 . . . . 4 . . . . Meltdown 2 | . . . . . 1 . . . . . . . . . . 1 Destroy 5 | . . . . . 1 3 1 . . . . . . . . . Sever 8 | . . . . . . . . . . . . 8 . . . . Melee Attacks 57 | . . . . . . . . 3 4 . . 47 1 2 . . Impact . | . . . . . . . . . . . . . . . . . Slashing 57 | . . . . . . . . 3 4 . . 47 1 2 . . Piercing . | . . . . . . . . . . . . . . . . . Sneak Attacks 3 | . . . . . . . . . . . . 3 . . . . Combat Hostiles . | . . . . . . . . . . . . . . . . . Follow-up Attacks . | . . . . . . . . . . . . . . . . . Damage Inflicted 8059 | . 790 167 . . 1224 2179 1276 . 106 . . 1575 . 96 . 646 Guns 3812 | . 562 45 . . 471 1780 536 . . . . 396 . . . 22 Cannons 1701 | . 228 122 . . 579 . 438 . . . . . . 63 . 271 Explosions 1228 | . . . . . 174 399 302 . . . . . . . . 353 Melee 1318 | . . . . . . . . . 106 . . 1179 . 33 . . Ramming . | . . . . . . . . . . . . . . . . . Kinetic 3537 | . 428 45 . . 471 1780 607 . . . . . . . . 206 Thermal 1847 | . 362 122 . . 579 . 308 . . . . 326 . 63 . 87 Explosive 1228 | . . . . . 174 399 302 . . . . . . . . 353 Electromagnetic 129 | . . . . . . . 59 . . . . 70 . . . . Impact . | . . . . . . . . . . . . . . . . . Slashing 1318 | . . . . . . . . . 106 . . 1179 . 33 . . Piercing . | . . . . . . . . . . . . . . . . . Highest Corruption 13 | . . . . . . . 4 4 5 5 5 13 13 13 13 13 Average Corruption 8 | . . . . . . . 3 4 4 5 5 6 13 13 13 13 Corruption Purged . | . . . . . . . . . . . . . . . . . Corruption Blocked . | . . . . . . . . . . . . . . . . . Effects 156 | . . . . . . . 6 . 6 1 2 60 22 35 6 18 Message Errors 30 | . . . . . . . 1 . 1 1 . 13 4 10 . . Matter Fused 44 | . . . . . . . . . 3 . 1 19 6 9 2 4 Heat Flow Errors 20 | . . . . . . . 1 . . . . 7 2 5 1 4 Energy Discharges 15 | . . . . . . . 1 . . . . 7 . 3 . 4 Parts Rejected 1 | . . . . . . . . . . . . 1 . . . . Parts Fused 2 | . . . . . . . 1 . . . . 1 . . . . Data Loss (minor) 23 | . . . . . . . 1 . 1 . 1 5 4 7 2 2 Data Loss (major) 17 | . . . . . . . . . 1 . . 7 5 1 1 2 Misfires 2 | . . . . . . . . . . . . . 1 . . 1 Alerts 1 | . . . . . . . 1 . . . . . . . . . Weapon Failures 1 | . . . . . . . . . . . . . . . . 1 Overload Shots . | . . . . . . . . . . . . . . . . . Overflow Damage 101 | . 6 . . . 36 9 . . 24 . . . . 26 . . Projectiles 6 | . 6 . . . . . . . . . . . . . . . Explosions 45 | . . . . . 36 9 . . . . . . . . . . Melee 50 | . . . . . . . . . 24 . . . . 26 . . Knockbacks 11 | . . . . . . . 8 . . . . . . . . 3 Impact . | . . . . . . . . . . . . . . . . . Kinetic 10 | . . . . . . . 7 . . . . . . . . 3 Secondary 1 | . . . . . . . 1 . . . . . . . . . Self-Inflicted Damage 242 | . . . . . 37 57 72 . . . . . . . . 76 Shots 6 | . . . . . 1 1 2 . . . . . . . . 2 Rammed . | . . . . . . . . . . . . . . . . . Targets Rammed . | . . . . . . . . . . . . . . . . . Kicked . | . . . . . . . . . . . . . . . . . Crushed . | . . . . . . . . . . . . . . . . . Highest Temperature 443 | . 194 267 . . 293 10 338 . . . . 241 92 232 257 443 Average Temperature 79 | . 42 120 . . 63 5 96 . . . . 74 38 96 141 185 Received Heat Transfer 3186 | . 330 111 . . 315 612 927 . 12 . . 558 . . . 321 Effects 3 | . . . . . . . . . . . . . . . . 3 Shutdowns 2 | . . . . . . . . . . . . . . . . 2 Matter Decay 1 | . . . . . . . . . . . . . . . . 1 Siege Activations . | . . . . . . . . . . . . . . . . . Robots Corrupted . | . . . . . . . . . . . . . . . . . Combat Hostiles . | . . . . . . . . . . . . . . . . . Parts Fried . | . . . . . . . . . . . . . . . . . Impact Corruptions . | . . . . . . . . . . . . . . . . . Robots Melted 2 | . . . . . 1 . . . . . . . . . . 1 Combat Hostiles 2 | . . . . . 1 . . . . . . . . . . 1 Parts Melted 11 | . 1 . . . 3 . . . . . . 5 . . . 2 Heat Transferred 4261 | . 888 259 . . 1221 . 406 . . . . 1250 . 100 . 137 Parts Sabotaged . | . . . . . . . . . . . . . . . . . Parts Stolen . | . . . . . . . . . . . . . . . . . Parts Stripped . | . . . . . . . . . . . . . . . . . Power Chain Reactions . | . . . . . . . . . . . . . . . . . Alert | -11 -10 -10 -10 -9 -8 -8 -7 -7 -7 -7 -6 -6 -6 -6 -6 -5 ------- Run | Yrd Mat Min Exi Min Mat Gar Fac Low Low Zio Pro Fac Low Low Dat Pro Peak Influence 1499 | . 337 75 . . 221 1499 790 . . . . 68 . . . . Initial 786 | . . 32 . . . 44 786 . . . . 9 . . . . Average 268 | . 130 38 . . 91 538 592 . . . . 12 . . . . Maximum Alert Level 4 | . 1 . . . 1 4 3 . . . . . . . . . Low Security (%) 59 | 100 79 100 . 100 94 17 . . . . . 100 . . . . Level 1 13 | . 20 . . . 5 24 25 . . . . . . . . . Level 2 13 | . . . . . . 31 31 . . . . . . . . . Level 3 11 | . . . . . . 19 43 . . . . . . . . . Level 4 2 | . . . . . . 6 . . . . . . . . . . Level 5 . | . . . . . . . . . . . . . . . . . High Security . | . . . . . . . . . . . . . . . . . Max Security . | . . . . . . . . . . . . . . . . . Squads Dispatched 13 | . 1 . . . 3 . 3 . . . . 6 . . . . Investigation 3 | . 1 . . . 2 . . . . . . . . . . . Extermination 6 | . . . . . . . 1 . . . . 5 . . . . Reinforcement 2 | . . . . . 1 . . . . . . 1 . . . . Assault 2 | . . . . . . . 2 . . . . . . . . . Garrison . | . . . . . . . . . . . . . . . . . Intercept . | . . . . . . . . . . . . . . . . . Searches Triggered . | . . . . . . . . . . . . . . . . . Construction Impeded . | . . . . . . . . . . . . . . . . . Haulers Reinforced 1 | . . . . . . . . . . . . 1 . . . . Active Scanning Responses . | . . . . . . . . . . . . . . . . . Cargo Convoy Interrupts . | . . . . . . . . . . . . . . . . . Stealth | -11 -10 -10 -10 -9 -8 -8 -7 -7 -7 -7 -6 -6 -6 -6 -6 -5 --------- Run | Yrd Mat Min Exi Min Mat Gar Fac Low Low Zio Pro Fac Low Low Dat Pro Distress Signals 4 | . 1 . . . 3 . . . . . . . . . . . Communications Jammed . | . . . . . . . . . . . . . . . . . Distress Signals . | . . . . . . . . . . . . . . . . . Times Spotted 122 | . 22 2 . . 26 26 16 . 2 . 6 9 4 1 . 8 Peak Tracking Total 6 | . 4 2 . . 5 6 6 . 1 . 5 4 4 1 . 4 Tactical Retreats 10 | . 3 . . . 2 1 1 . . . 2 . . . . 1 Traps | -11 -10 -10 -10 -9 -8 -8 -7 -7 -7 -7 -6 -6 -6 -6 -6 -5 ------- Run | Yrd Mat Min Exi Min Mat Gar Fac Low Low Zio Pro Fac Low Low Dat Pro Traps Triggered 16 | . 4 . . . . 7 2 . . . . 3 . . . . Indirectly . | . . . . . . . . . . . . . . . . . Trap Hack Attempts . | . . . . . . . . . . . . . . . . . Triggered . | . . . . . . . . . . . . . . . . . Disarmed . | . . . . . . . . . . . . . . . . . Reprogrammed . | . . . . . . . . . . . . . . . . . Reused . | . . . . . . . . . . . . . . . . . Traps Extracted . | . . . . . . . . . . . . . . . . . Installed . | . . . . . . . . . . . . . . . . . Triggered 3 | . . . . . . . . 2 1 . . . . . . . Machines | -11 -10 -10 -10 -9 -8 -8 -7 -7 -7 -7 -6 -6 -6 -6 -6 -5 ---------- Run | Yrd Mat Min Exi Min Mat Gar Fac Low Low Zio Pro Fac Low Low Dat Pro Machines Disabled 11 | . . . . . 3 8 . . . . . . . . . . Max in Single Turn 2 | . . . . . 1 2 . . . . . . . . . . Garrison Access 2 | . . . . . . . 1 . . . . 1 . . . . Garrison Relay 5 | . . . . . . 5 . . . . . . . . . . Phase Generator 1 | . . . . . . 1 . . . . . . . . . . Machines Repaired . | . . . . . . . . . . . . . . . . . Machines Dismantled . | . . . . . . . . . . . . . . . . . Machines Sabotaged . | . . . . . . . . . . . . . . . . . Overloaded Fab Kills . | . . . . . . . . . . . . . . . . . Hacking | -11 -10 -10 -10 -9 -8 -8 -7 -7 -7 -7 -6 -6 -6 -6 -6 -5 --------- Run | Yrd Mat Min Exi Min Mat Gar Fac Low Low Zio Pro Fac Low Low Dat Pro Machines Accessed 37 | . 2 1 1 . 8 3 6 1 1 . . 8 2 . 4 . Terminals 26 | . 2 1 . . 7 3 5 1 1 . . 5 1 . . . Fabricators 1 | . . . . . . . . . . . . 1 . . . . Repair Stations . | . . . . . . . . . . . . . . . . . Recycling Units 1 | . . . . . . . . . . . . 1 . . . . Scanalyzers . | . . . . . . . . . . . . . . . . . Garrison Access 3 | . . . . . 1 . 1 . . . . 1 . . . . Total Hacks 97 | . 4 3 1 . 21 8 10 1 1 . . 16 2 . 30 . Successful 61 | . 2 2 1 . 8 1 3 1 1 . . 10 2 . 30 . Failed 36 | . 2 1 . . 13 7 7 . . . . 6 . . . . Catastrophic 11 | . . . . . 6 3 . . . . . 2 . . . . Database Lockouts . | . . . . . . . . . . . . . . . . . Manual 38 | . . 2 1 . 17 . 7 . . . . 11 . . . . Terminals 59 | . 4 3 . . 20 8 9 1 1 . . 12 1 . . . Fabricators 1 | . . . . . . . . . . . . 1 . . . . Repair Stations . | . . . . . . . . . . . . . . . . . Recycling Units 1 | . . . . . . . . . . . . 1 . . . . Scanalyzers . | . . . . . . . . . . . . . . . . . Garrison Access 4 | . . . . . 1 . 1 . . . . 2 . . . . Terminal Hacks 47 | . 2 2 1 . 3 1 2 1 1 . . 2 2 . 30 . Record 15 | . . 1 . . . . . 1 1 . . . 1 . 11 . Part Schematic 11 | . . . . . . . . . . . . . . . 11 . Robot Schematic 5 | . . . . . . . . . . . . . . . 5 . Prototype ID Bank 3 | . . . . . . . . . . . . . . . 3 . Open Door 1 | . . . . . . . . . . . . . 1 . . . Branch Access Points 3 | . . . . . 1 . 1 . . . . 1 . . . . Emergency Access Points 1 | . . . . . . 1 . . . . . . . . . . Fabricator Index 1 | . . . . . 1 . . . . . . . . . . . Garrison Index 1 | . . . . . 1 . . . . . . . . . . . Unreport Threat 1 | . . . . . . . 1 . . . . . . . . . Transport Status 1 | . . . . . . . . . . . . 1 . . . . Hauler Manifests 1 | . 1 . . . . . . . . . . . . . . . Zone Layout 2 | . 1 1 . . . . . . . . . . . . . . Derelict Proto ID Bank 1 | . . . 1 . . . . . . . . . . . . . Fabricator Hacks 1 | . . . . . . . . . . . . 1 . . . . Build 1 | . . . . . . . . . . . . 1 . . . . Repair Station Hacks . | . . . . . . . . . . . . . . . . . Recycling Unit Hacks . | . . . . . . . . . . . . . . . . . Scanalyzer . | . . . . . . . . . . . . . . . . . Garrison Access Hacks 4 | . . . . . 1 . 1 . . . . 2 . . . . Unlock Access 2 | . . . . . 1 . . . . . . 1 . . . . Seal Access 2 | . . . . . . . 1 . . . . 1 . . . . Unauthorized Hacks 9 | . . . . . 4 . . . . . . 5 . . . . Terminals 8 | . . . . . 4 . . . . . . 4 . . . . Track 1 | . . . . . 1 . . . . . . . . . . . Assimilate 1 | . . . . . . . . . . . . 1 . . . . Botnet 6 | . . . . . 3 . . . . . . 3 . . . . Fabricators . | . . . . . . . . . . . . . . . . . Repair Stations . | . . . . . . . . . . . . . . . . . Recycling Units 1 | . . . . . . . . . . . . 1 . . . . Reject 1 | . . . . . . . . . . . . 1 . . . . Scanalyzers . | . . . . . . . . . . . . . . . . . Garrison Access . | . . . . . . . . . . . . . . . . . Data Cores Recovered . | . . . . . . . . . . . . . . . . . Used . | . . . . . . . . . . . . . . . . . Hacking Detections 24 | . 1 . . . 6 3 5 1 . . . 7 1 . . . Full Trace Events 4 | . . . . . 2 2 . . . . . . . . . . Feedback Events . | . . . . . . . . . . . . . . . . . Feedback Blocked . | . . . . . . . . . . . . . . . . . Robot Schematics Acquired 5 | . . . . . . . . . . . . . . . 5 . Robots Built 1 | . . . . . . . . . . . . 1 . . . . Authchips . | . . . . . . . . . . . . . . . . . Time 50 | . . . . . . . . . . . . 50 . . . . Total Robot Build Rating 5 | . . . . . . . . . . . . 5 . . . . Part Schematics Acquired 11 | . . . . . . . . . . . . . . . 11 . Parts Built . | . . . . . . . . . . . . . . . . . Authchips . | . . . . . . . . . . . . . . . . . Time . | . . . . . . . . . . . . . . . . . Total Part Build Rating . | . . . . . . . . . . . . . . . . . Parts Repaired . | . . . . . . . . . . . . . . . . . Time . | . . . . . . . . . . . . . . . . . Parts Recycled . | . . . . . . . . . . . . . . . . . Recycled Matter . | . . . . . . . . . . . . . . . . . Retrieved Matter . | . . . . . . . . . . . . . . . . . Retrieved Components . | . . . . . . . . . . . . . . . . . Parts Scanalyzed . | . . . . . . . . . . . . . . . . . Part Schematics Acquired . | . . . . . . . . . . . . . . . . . Parts Damaged . | . . . . . . . . . . . . . . . . . Bothacking | -11 -10 -10 -10 -9 -8 -8 -7 -7 -7 -7 -6 -6 -6 -6 -6 -5 ------------ Run | Yrd Mat Min Exi Min Mat Gar Fac Low Low Zio Pro Fac Low Low Dat Pro Used RIF Installer 1 | . . . . . . 1 . . . . . . . . . . Robots Hacked . | . . . . . . . . . . . . . . . . . Non-combat . | . . . . . . . . . . . . . . . . . Combat . | . . . . . . . . . . . . . . . . . Robot Hacks Applied . | . . . . . . . . . . . . . . . . . Relay Couplers Released 21 | . . . . . . 21 . . . . . . . . . . Machine Destruction 21 | . . . . . . 21 . . . . . . . . . . Fabnet Peak Effective % . | . . . . . . . . . . . . . . . . . Robots Rewired . | . . . . . . . . . . . . . . . . . Allies Hacked . | . . . . . . . . . . . . . . . . . Hacks Repelled . | . . . . . . . . . . . . . . . . . Allies | -11 -10 -10 -10 -9 -8 -8 -7 -7 -7 -7 -6 -6 -6 -6 -6 -5 -------- Run | Yrd Mat Min Exi Min Mat Gar Fac Low Low Zio Pro Fac Low Low Dat Pro Total Allies 3 | . . . . . . . . . . . . 2 . . . 1 Largest Group 1 | . . . . . . . . . . . . 1 1 . . 1 Highest-Rated Group 96 | . . . . . . . . . . . . 26 23 . . 96 Highest-Rated Ally 96 | . . . . . . . . . . . . 26 23 . . 96 Total Orders . | . . . . . . . . . . . . . . . . . Ally Attacks 7 | . . . . . . . . . . . . . . . . 7 Total Damage 134 | . . . . . . . . . . . . . . . . 134 Kills . | . . . . . . . . . . . . . . . . . Allies Corrupted . | . . . . . . . . . . . . . . . . . Allies Melted 1 | . . . . . . . . . . . . . . 1 . . Intel | -11 -10 -10 -10 -9 -8 -8 -7 -7 -7 -7 -6 -6 -6 -6 -6 -5 ------- Run | Yrd Mat Min Exi Min Mat Gar Fac Low Low Zio Pro Fac Low Low Dat Pro Robot Analysis Total . | . . . . . . . . . . . . . . . . . Derelict Logs Recovered 9 | . . 1 . . . . . 2 1 . 2 . 3 . . . Drone Launches . | . . . . . . . . . . . . . . . . . Drone Recoveries . | . . . . . . . . . . . . . . . . . Exploration | -11 -10 -10 -10 -9 -8 -8 -7 -7 -7 -7 -6 -6 -6 -6 -6 -5 ------------- Run | Yrd Mat Min Exi Min Mat Gar Fac Low Low Zio Pro Fac Low Low Dat Pro Turns Passed 11595 | 73 890 484 468 65 835 2861 928 99 189 34 176 2552 515 903 134 389 Spaces Moved 6946 | 38 432 208 218 30 324 910 988 275 519 92 472 1433 239 530 82 156 Core 27 | 13 1 . . . . . 3 . . . . 10 . . . . Treads 2332 | 25 104 . . . 11 776 . . . . . 624 24 530 82 156 Legs 619 | . . . . . . . 8 . . . . 396 215 . . . Wheels 1533 | . 327 208 218 30 313 134 303 . . . . . . . . . Hover . | . . . . . . . . . . . . . . . . . Flight 2435 | . . . . . . . 674 275 519 92 472 403 . . . . Fastest Speed 32 | 50 95 215 215 215 175 175 32 32 32 32 37 37 120 160 160 160 Average Speed 134 | 156 158 215 215 215 193 264 78 32 32 33 37 115 181 166 160 160 Slowest Speed 1650 | 200 300 215 215 215 240 480 1650 32 32 37 37 190 260 260 160 160 Overloaded Moves . | . . . . . . . . . . . . . . . . . Propulsion Burnouts . | . . . . . . . . . . . . . . . . . Robots Hopped 11 | . . . . . . . 8 . . . . 3 . . . . Cave-ins Triggered . | . . . . . . . . . . . . . . . . . Exploration Rate (%) 46 | 3 73 46 59 18 38 89 28 47 68 10 74 32 39 71 68 20 Regions Visited 16 Branch Regions 11 Pre-discovered Areas 3 | . . . . . . . . . . . . . 2 . 1 . Known Exits Taken 6 | . . . . . 1 . 1 . . . . 1 1 1 1 . Unknown Exits Taken 9 | 1 1 1 1 1 . . . 1 1 1 1 . . . . . Scrap Searched 15 | . . 1 . 1 . . . 1 3 . 3 . 2 4 . . Spaces Dug 13 | . . . . . . 5 . 3 . . . 4 . . . 1 Terrain Destroyed 144 | . . . . . 5 84 3 3 . . . 4 2 . . 43 Melee 7 | . . . . . . . . 3 . . . 4 . . . . Projectile 13 | . . . . . . 8 . . . . . . 2 . . 3 AOE 124 | . . . . . 5 76 3 . . . . . . . . 40 Terrain Rammed . | . . . . . . . . . . . . . . . . . Walls Destroyed . | . . . . . . . . . . . . . . . . . Machines Disabled . | . . . . . . . . . . . . . . . . . Actions | -11 -10 -10 -10 -9 -8 -8 -7 -7 -7 -7 -6 -6 -6 -6 -6 -5 --------- Run | Yrd Mat Min Exi Min Mat Gar Fac Low Low Zio Pro Fac Low Low Dat Pro Total 8622 | 49 540 228 218 31 432 1200 1085 281 536 95 473 2228 318 547 85 276 Wait 1063 | . 23 3 . 2 23 129 25 . 7 . . 680 63 6 . 102 Move 6907 | 37 431 207 217 29 323 908 971 274 518 91 471 1426 238 529 81 156 Hop 11 | . . . . . . . 8 . . . . 3 . . . . Pick Up 100 | 7 14 5 1 . 14 18 17 1 2 1 1 13 3 3 . . Fast Attach 54 | 5 7 . . . 1 8 4 . 1 . . 19 5 2 2 . Attach 42 | . 3 3 . . 7 4 18 2 . . . 4 1 . . . Detach 4 | . . . . . . . 1 1 1 . . . 1 . . . Swap 24 | . 1 . . . 5 6 3 . 1 1 . 4 . . . 3 Drop 67 | . 4 . . . 5 15 15 . 2 2 1 13 5 3 2 . Fire 267 | . 57 10 . . 54 86 23 . . . . 19 1 2 . 15 Melee 57 | . . . . . . . . 3 4 . . 47 1 2 . . Ram . | . . . . . . . . . . . . . . . . . Kick . | . . . . . . . . . . . . . . . . . Crush . | . . . . . . . . . . . . . . . . . Escape Stasis 26 | . . . . . . 26 . . . . . . . . . . Rewire . | . . . . . . . . . . . . . . . . . Trap . | . . . . . . . . . . . . . . . . . Miscellaneous . | . . . . . . . . . . . . . . . . . Route ------- -11/Scrapyard -10/Materials (discovered 3 exits: [*Mat] / *Min x2) -10/Mines (discovered 3 exits: [*Mat] / *Exi / Sub) -10/Exiles -9/Mines -8/Materials (discovered 3 exits: *Fac x2 / Gar) -8/Garrison (discovered 4 exits: *Fac x3 / [*Mat]) -7/Factory (discovered 2 exits: *Low x2) -7/Lower Caves -7/Lower Caves (discovered 2 exits: *Fac / [*Zio]) -7/Zion -6/Proximity Caves -6/Factory (discovered 6 exits: *Fac x4 / *Low x2) -6/Lower Caves -6/Lower Caves (discovered 2 exits: *Fac / *Dat) -6/Data Miner -5/Proximity Caves History --------- Turn | Location | Event 21 | -11/Scrapyard | Discovered new exit (range 15) 74 | -11/Scrapyard | Entered Materials 339 | -10/Materials | Build established: Mutant 355 | -10/Materials | Discovered new exit (range 6) 630 | -10/Materials | Discovered new exit (range 16) 719 | -10/Materials | Lost 3 parts (1p2w) 871 | -10/Materials | Discovered new exit (range 15) 964 | -10/Materials | Entered Mines 1159 | -10/Mines | Identified exit to Subcaves 1196 | -10/Mines | Discovered new exit (range 4) 1241 | -10/Mines | Core integrity fell below 50% 1437 | -10/Mines | Deemed a non-threat by the Exiles lab entrance 1439 | -10/Mines | Discovered new exit (range 5) 1448 | -10/Mines | Entered Exiles 1502 | -10/Exiles | Met 8R-AWN 1537 | -10/Exiles | Met EX-HEX 1599 | -10/Exiles | Met EX-BIN 1625 | -10/Exiles | Aligned with FarCom system 1627 | -10/Exiles | Given EX-Vault access code 1676 | -10/Exiles | Opened EX-Vault 1691 | -10/Exiles | Found 0b10 Alert Chip 1735 | -10/Exiles | Warned to stay clear of 0b10 Research branches 1819 | -10/Exiles | Met EX-DEC 1892 | -10/Exiles | Discovered new exit (range 12) 1916 | -10/Exiles | Left Exiles lab with 0b10 Alert Chip 1916 | -10/Exiles | Entered Mines 1955 | -9/Mines | Discovered new exit (range 12) 1981 | -9/Mines | Entered Materials 1981 | -8/Materials | Evolved 4 slots: Propulsion x1, Utility x3 2495 | -8/Materials | Discovered new exit (range 13) 2650 | -8/Materials | Discovered new exit (range 16) 2784 | -8/Materials | Lost 5 parts (1p1n3u) 2814 | -8/Materials | Identified exit to Garrison 2816 | -8/Materials | Entered Garrison 2858 | -8/Garrison | Triggered checkpoint 3108 | -8/Garrison | Garrison Relay disabled 3132 | -8/Garrison | Garrison Relay disabled 3249 | -8/Garrison | Build established: Scavenger-Mutant 3316 | -8/Garrison | Triggered checkpoint 3331 | -8/Garrison | Core integrity fell below 50% 3446 | -8/Garrison | Discovered new exit (range 10) 3496 | -8/Garrison | Triggered checkpoint 3552 | -8/Garrison | Discovered new exit (range 6) 3836 | -8/Garrison | Triggered checkpoint 3877 | -8/Garrison | Garrison Relay disabled 4072 | -8/Garrison | Triggered checkpoint 4332 | -8/Garrison | Garrison Relay disabled 4454 | -8/Garrison | Discovered new exit (range 11) 4483 | -8/Garrison | Installed Relay Interface Framework 5436 | -8/Garrison | Discovered new exit (range 10) 5462 | -8/Garrison | Triggered checkpoint 5481 | -8/Garrison | Garrison Relay disabled 5620 | -8/Garrison | Phase Generator disabled 5677 | -8/Garrison | Entered Factory 5677 | -7/Factory | Evolved 2 slots: Utility x1, Weapon x1 6077 | -7/Factory | First assault squad dispatched 6167 | -7/Factory | Build established: Scavenger-Gunner 6269 | -7/Factory | Lost 9 parts (1p2n2u4w) 6322 | -7/Factory | Core integrity fell below 50% 6373 | -7/Factory | Lost 9 parts (1p3n2u3w) 6532 | -7/Factory | Identified exit to Lower Caves 6605 | -7/Factory | Entered Lower Caves 6641 | -7/Lower Caves | Learned location of 2 exits from Factory 6660 | -7/Lower Caves | Learned Factory stockpile data 6700 | -7/Lower Caves | Discovered new exit (range 12) 6704 | -7/Lower Caves | Entered another Lower Caves area 6711 | -7/Lower Caves | Discovered new exit (range 9) 6887 | -7/Lower Caves | Learned Factory stockpile data 6889 | -7/Lower Caves | Discovered new exit (range 11) 6893 | -7/Lower Caves | Attracted the attention of an 0b10 checkpoint 6893 | -7/Lower Caves | Entered Zion 6909 | -7/Zion | Discovered new exit (range 15) 6927 | -7/Zion | Entered Proximity Caves 7052 | -6/Proximity Caves | Learned Factory terminal intel 7077 | -6/Proximity Caves | Learned location of 1 exit from Factory 7099 | -6/Proximity Caves | Discovered new exit (range 13) 7103 | -6/Proximity Caves | Entered Factory 7103 | -6/Factory | Evolved 2 slots: Utility x2 7104 | -6/Factory | Identified exit to Factory 7106 | -6/Factory | Loaded intel: 26 terminal locations 7378 | -6/Factory | Build established: Hacker-Ninja 7683 | -6/Factory | Identified exit to Lower Caves 7764 | -6/Factory | Build established: Hacker-Mutant 8958 | -6/Factory | System corruption reached 10% 9002 | -6/Factory | Core integrity fell below 50% 9057 | -6/Factory | Lost 12 parts (1p4n4u3w) 9210 | -6/Factory | Discovered exit to Factory (range 7) 9362 | -6/Factory | Identified exit to Garrison 9627 | -6/Factory | Fabricated A-15 Conveyor? 9655 | -6/Factory | Entered Lower Caves 9655 | -6/Lower Caves | Accompanied by 1 ally 9661 | -6/Lower Caves | Learned location of Extension (-4) 9907 | -6/Lower Caves | Learned Factory terminal intel 10022 | -6/Lower Caves | Discovered new exit (range 3) 10166 | -6/Lower Caves | Identified exit to Lower Caves 10170 | -6/Lower Caves | Entered another Lower Caves area 10230 | -6/Lower Caves | Discovered exit to Factory (range 12) 10289 | -6/Lower Caves | Core integrity fell below 20% 11023 | -6/Lower Caves | Spotted B-75 Beast 11052 | -6/Lower Caves | Discovered new exit (range 15) 11070 | -6/Lower Caves | Identified exit to Data Miner 11073 | -6/Lower Caves | Entered Data Miner 11073 | -6/Data Miner | Discovered new exit (range 7) 11105 | -6/Data Miner | Met Data Miner 11134 | -6/Data Miner | Learned location of Section 7 (-3) 11134 | -6/Data Miner | Acquired the access code to Warlord's prototype stash 11162 | -6/Data Miner | Received God Mode back door access code from Data Miner 11205 | -6/Data Miner | Identified exit to Proximity Caves 11207 | -6/Data Miner | Entered Proximity Caves 11552 | -5/Proximity Caves | Escorted by Enhanced Grunt 11579 | -5/Proximity Caves | Spotted B-75 Beast 11596 | -5/Proximity Caves | Destroyed by B-75 Beast with Heavy Plasma Cannon Last Messages --------------- 11467_ Acquired 3 matter. 11468_ The unstable cave ceiling collapses. 11472_ Acquired 4 matter. 11477_ System corrupted: Heat flow error (+259). 11492_ System corrupted: Heat flow error (+283). 11530_ System corrupted: Energy discharge (-88). 11547_ System corrupted: Matter fused (-6). 11552_ Enhanced Grunt: "Protecting LRC-V3." 11561_ Enhanced Grunt suffers critical hit (Burn). 11561_ Imp. Hacking Suite destroyed. 11565_ System corrupted: Component data lost. 11568_ Neutrino Core destroyed. 11585_ Acquired 3 matter. 11586_ System corrupted: Matter fused (-8). 11590_ System corrupted: Magnetic Acceleration Cannon jammed. 11594_ Acquired 2 matter. 11594_ Enhanced Grunt destroyed. 11595_ Critical hit (Burn: +37). Map ----- +----------------------------------------------------+ | | | | | ?????????????????????????????????????????????????? | | ?????????????????????????????????????????????????? | | ?????????????????????????????????????????????????? | | ?????????????????????????????????????????????????? | | ?????????????????????????????????????????????????? | | ?????????????????????????????????????????????????? | | ?????????????????????????????????????????????????? | | ?????????????????????????????????????????????????? | | ?????????????????????????????????????????????????? | | ?????????????????????????????????????????????????? | | ?????????????????????????????????????????????????? | | ?????????????????????????????????????????????????? | | ?????????????????????????????????????????????????? | | ?????????????????????????????????????????????????? | | ??####??????????????????????????????#????????????? | | ### ############?????????????##??? ###??????????? | | #????????????? #### #??????????? | | ##???????????? #??????????? | | ######## ####???????? #??????????? | | #??????## ##??????? #??????????? | | ##??????## #??????# #??????????? | | #???????#" ##??####; #??????????? | | ##### ### ##???# #??????????? | | ##????# ##???#@* ?????? | | #?????## ####=%###;;; ?????? | | ???????# g gg#?????? BB #?????? | | ???????# ########????????? ??????? | | ???????# ##?????????????????? ???????? | | ???????# #####????????????????????? ???????? | | ??????$ #???????????????????????????????????? | | ????? # #????????????????????????????????????? | | ?????? #" ?????????????????????????????????????? | | ?????? ?## ?????????????????????????????????????? | | ?????????#???????????????????????????????????????? | | ?????????????????????????????????????????????????? | | ?????????????????????????????????????????????????? | | ?????????????????????????????????????????????????? | | ????????????????????????????????????????????????? | | ?????????????????????????????????????????????????? | | ?????????????????????????????????????????????????? | | ?????????????????????????????????????????????????? | | ?????????????????????????????????????????????????? | | ?????????????????????????????????????????????????? | | ?????????????????????????????????????????????????? | | ?????????????????????????????????????????????????? | | ?????????????????????????????????????????????????? | | ?????????????????????????????????????????????????? | | ?????????????????????????????????????????????????? | +----------------------------------------------------+ Best States ------------- Heat Dissipation 56 Energy Generation 19 Energy Capacity 800 Matter Stores 300 Matter Capacity 450 Sight Range 20 Robot Scan Range 16 Terrain Scan Range 14 Terrain Scan Density 10 ECM Strength 2 Armor Coverage 300 Evasion (%) 63 Targeting Accuracy 10 Target Analysis 5 Recoil Reduction 3 Offensive Hacking 34 Defensive Hacking 10 Item Schematics ----------------- Combat Drone Bay | -6/Data Miner | Free Lgt. Regenerative Plating | -6/Data Miner | Free Exp. Cesium-ion Thruster | -6/Data Miner | Free Exp. Heat Sink | -6/Data Miner | Free Kinetic Spear | -6/Data Miner | Free Impulse Thruster | -6/Data Miner | Free Adv. Coolant Injector | -6/Data Miner | Free Adv. Datajack | -6/Data Miner | Free Field Propulsion Drive | -6/Data Miner | Free Imp. Armor Integrity Analyzer | -6/Data Miner | Free Impulse Thruster Array | -6/Data Miner | Free Robot Schematics ------------------ P-70 Sage | -6/Data Miner | Free B-48 Gladiator | -6/Data Miner | Free B-60 Warrior | -6/Data Miner | Free L-61 Swordsman | -6/Data Miner | Free R-10 Processor | -6/Data Miner | Free Fabricated ------------ A-15 Conveyor | x1 | -6/Factory | Preloaded Alien Tech Used ----------------- None Achievements -------------- None Challenges ------------ None Game ------ Seed VortexBackupStreamer Manual? 0 Play Time 01:06:14 Cumulative 102.3 hours Start 2024.11.06 @ 17:19:07 End 2024.11.06 @ 20:14:22 Sessions 3 Manual Loads 0 Difficulty Rogue Special Mode None Game No. 127 Rogue 127 Adventurer 0 Explorer 0 Win Type - Total 1 Types 1/0/0/0/0/0/0/0/0 Lore% 61 Gallery% 52 Achievement% 45 Wizard Run 0 Options --------- Layout 1 ASCII 0 Keyboard 1 Movement Numpad Keybinds 0 Fullscreen 1 Font 24/Smallcaps Map View 50x35 Zoom Use 0% Tactical HUD 1 Map Filters NONE Filters NONE Steam 1 RUN: b5670daf-d70c-49d0-ab98-aee9dbb4e9f7